Cogmind - Beta 12 @@@ ROGUE MODE // 2023.04.27 @ 22:17:43 Player: Mr Goldstein Result: Self-destructed Performance ------------- Evolutions (3) 1500 Regions Visited (4) 800 Robots Destroyed (0) 0 Value Destroyed (0) 0 Prototype IDs (0) 0 Alien Tech Used (0) 0 Bonus (834) 834 TOTAL SCORE: 3134 Bonus ------- Pacifist 834 Cogmind --------- Core Integrity 163/700 Matter 300/300 Energy 99/100 System Corruption 1% Temperature Cool (0) Movement Core (50) Location -7/Factory Parts ------- > --- POWER (2) -------- (None) > --- PROPULSION (6) --- (None) > --- UTILITY (3) ------ (None) > --- WEAPON (2) ------- (None) > --- INVENTORY (5) ---- Improved Signal Interpreter Improved Signal Interpreter Improved Signal Interpreter Improved Signal Interpreter Remote Datajack Peak State ------------ > --- POWER ------------ (None) > --- PROPULSION ------- (None) > --- UTILITY ---------- (None) > --- WEAPON ----------- Remote Datajack > --- INVENTORY -------- Improved Signal Interpreter Improved Signal Interpreter Improved Signal Interpreter Improved Signal Interpreter [Rating: 5] Favorites ----------- Power None Propulsion Cesium-ion Thruster Flight Unit Cesium-ion Thruster Utility None Weapon Remote Datajack Special Weapon Remote Datajack Build | -11 -10 -9 -8 -7 ------- Run | Jun Mat Mat Mat Fac Slots Evolved 6 | . . 2 2 2 Power 1 | . . . . 1 Propulsion 4 | . . 2 2 . Utility 1 | . . . . 1 Weapon . | . . . . . Parts Attached 2 | . . . . 2 Power . | . . . . . Engine . | . . . . . Core . | . . . . . Reactor . | . . . . . Propulsion 1 | . . . . 1 Treads . | . . . . . Leg . | . . . . . Wheel . | . . . . . Hover . | . . . . . Flight 1 | . . . . 1 Utility . | . . . . . Device . | . . . . . Storage . | . . . . . Processor . | . . . . . Hackware . | . . . . . Protection . | . . . . . Artifact . | . . . . . Weapon 1 | . . . . 1 Energy Gun . | . . . . . Energy Cannon . | . . . . . Ballistic Gun . | . . . . . Ballistic Cannon . | . . . . . Launcher . | . . . . . Special Weapon 1 | . . . . 1 Impact Weapon . | . . . . . Slashing Weapon . | . . . . . Piercing Weapon . | . . . . . Special Melee Weapon . | . . . . . Unidentified Prototypes . | . . . . . Parts Lost 1 | . . . . 1 Power . | . . . . . Propulsion 1 | . . . . 1 Utility . | . . . . . Weapon . | . . . . . Highest Loss Streak 1 | . . . . 1 To Critical Strikes . | . . . . . Average Slot Usage (%) 1 | . . . . 2 Flight 1 | . . . . 2 Naked Turns 223 | . 25 78 43 77 Heaviest Build . | . . . . . Greatest Support 5 | 3 3 3 3 5 Greatest Overweight (x) . | . . . . . Average Overweight (x) . | . . . . . Largest Inventory Capacity 5 | 5 5 5 5 5 Average Capacity 5 | 5 5 5 5 5 Most Carried 5 | . . 4 4 5 Average Carried 3 | . . 2 4 4 Final Capacity 5 | 5 5 5 5 5 Final Carried 5 | . . 4 4 5 Class Distribution -------------------- 100% | Mutant Dominant Class ---------------- Mutant | -10/Materials Mutant | -9/Materials Mutant | -8/Materials Mutant | -7/Factory Resources | -11 -10 -9 -8 -7 ----------- Run | Jun Mat Mat Mat Fac Matter Collected 220 | 157 . . . 63 Remotely . | . . . . . Salvage Created . | . . . . . Parts . | . . . . . Haulers Intercepted . | . . . . . Recyclers Shooed . | . . . . . Parts Field Recycled . | . . . . . Retrieved Matter . | . . . . . Parts Self-Destructed . | . . . . . Prevented . | . . . . . Kills | -11 -10 -9 -8 -7 ------- Run | Jun Mat Mat Mat Fac Combat Hostiles Destroyed . | . . . . . Classes Destroyed . | . . . . . Best Kill Streak . | . . . . . Combat Bots Only . | . . . . . Max Kills in Single Turn . | . . . . . Gunslinging . | . . . . . Exploded . | . . . . . Melee . | . . . . . Uniques/NPCs Destroyed . | . . . . . Combat | -11 -10 -9 -8 -7 -------- Run | Jun Mat Mat Mat Fac Damage Taken 1021 | . . 243 196 582 Core 976 | . . 243 196 537 Absorbed by Shields . | . . . . . Core Remaining (%) 75 | 100 100 39 64 . Volleys Fired 2 | . . . . 2 Largest 1 | . . . . 1 Hottest 5 | . . . . 5 Shots Fired 2 | . . . . 2 Gun . | . . . . . Cannon . | . . . . . Launcher . | . . . . . Special 2 | . . . . 2 Kinetic . | . . . . . Thermal . | . . . . . Explosive . | . . . . . Electromagnetic . | . . . . . Robot Hit Streak 1 | . . . . 1 Robot Miss Streak . | . . . . . Penetration Max . | . . . . . Secondary Targets . | . . . . . Shots Hit Robots 1 | . . . . 1 Core Hits . | . . . . . Critical Kills . | . . . . . Critical Parts Destroyed . | . . . . . Critical Strikes . | . . . . . Melee Attacks . | . . . . . Impact . | . . . . . Slashing . | . . . . . Piercing . | . . . . . Sneak Attacks . | . . . . . Combat Hostiles . | . . . . . Follow-up Attacks . | . . . . . Damage Inflicted 5 | . . . 5 . Guns . | . . . . . Cannons . | . . . . . Explosions . | . . . . . Melee . | . . . . . Ramming 5 | . . . 5 . Kinetic . | . . . . . Thermal . | . . . . . Explosive . | . . . . . Electromagnetic . | . . . . . Impact . | . . . . . Slashing . | . . . . . Piercing . | . . . . . Highest Corruption . | . . . . . Average Corruption . | . . . . . Corruption Purged . | . . . . . Corruption Blocked . | . . . . . Overload Shots . | . . . . . Overflow Damage . | . . . . . Projectiles . | . . . . . Explosions . | . . . . . Melee . | . . . . . Knockbacks . | . . . . . Impact . | . . . . . Kinetic . | . . . . . Secondary . | . . . . . Self-Inflicted Damage 2 | . . . 2 . Shots . | . . . . . Rammed 1 | . . . 1 . Targets Rammed 1 | . . . 1 . Kicked . | . . . . . Crushed . | . . . . . Highest Temperature . | . . . . . Average Temperature . | . . . . . Received Heat Transfer 156 | . . 93 . 63 Siege Activations . | . . . . . Robots Corrupted . | . . . . . Combat Hostiles . | . . . . . Parts Fried . | . . . . . Impact Corruptions . | . . . . . Robots Melted . | . . . . . Combat Hostiles . | . . . . . Parts Melted . | . . . . . Heat Transferred . | . . . . . Parts Sabotaged . | . . . . . Parts Stolen . | . . . . . Parts Stripped . | . . . . . Power Chain Reactions . | . . . . . Missiles Intercepted . | . . . . . Alert | -11 -10 -9 -8 -7 ------- Run | Jun Mat Mat Mat Fac Peak Influence 195 | . . 195 111 141 Initial 81 | . . . 81 50 Average 82 | . . 81 87 104 Maximum Alert Level . | . . . . . Low Security (%) 100 | 100 100 100 100 100 Level 1 . | . . . . . Level 2 . | . . . . . Level 3 . | . . . . . Level 4 . | . . . . . Level 5 . | . . . . . High Security . | . . . . . Max Security . | . . . . . Squads Dispatched 7 | . . 2 2 3 Investigation 1 | . . . . 1 Extermination . | . . . . . Reinforcement 5 | . . 2 2 1 Assault 1 | . . . . 1 Garrison . | . . . . . Intercept . | . . . . . Searches Triggered . | . . . . . Construction Impeded . | . . . . . Haulers Reinforced . | . . . . . Active Scanning Responses . | . . . . . Cargo Convoy Interrupts . | . . . . . Stealth | -11 -10 -9 -8 -7 --------- Run | Jun Mat Mat Mat Fac Distress Signals . | . . . . . Communications Jammed . | . . . . . Distress Signals . | . . . . . Times Spotted 46 | . . 17 10 19 Peak Tracking Total 10 | . . 10 9 7 Tactical Retreats 4 | . . 2 . 2 Traps | -11 -10 -9 -8 -7 ------- Run | Jun Mat Mat Mat Fac Traps Triggered 2 | . . . . 2 Indirectly . | . . . . . Trap Hack Attempts . | . . . . . Triggered . | . . . . . Disarmed . | . . . . . Reprogrammed . | . . . . . Reused . | . . . . . Traps Extracted . | . . . . . Installed . | . . . . . Triggered . | . . . . . Machines | -11 -10 -9 -8 -7 ---------- Run | Jun Mat Mat Mat Fac Machines Disabled . | . . . . . Max in Single Turn . | . . . . . Garrison Access 1 | . . . . 1 Machines Repaired . | . . . . . Machines Sabotaged . | . . . . . Overloaded Fab Kills . | . . . . . Hacking | -11 -10 -9 -8 -7 --------- Run | Jun Mat Mat Mat Fac Machines Accessed 1 | . . . . 1 Terminals 1 | . . . . 1 Fabricators . | . . . . . Repair Stations . | . . . . . Recycling Units . | . . . . . Scanalyzers . | . . . . . Garrison Access . | . . . . . Total Hacks 3 | . . . . 3 Successful 1 | . . . . 1 Failed 2 | . . . . 2 Catastrophic 1 | . . . . 1 Database Lockouts . | . . . . . Manual 1 | . . . . 1 Terminals 3 | . . . . 3 Fabricators . | . . . . . Repair Stations . | . . . . . Recycling Units . | . . . . . Scanalyzers . | . . . . . Garrison Access . | . . . . . Terminal Hacks 1 | . . . . 1 Robot Analysis 1 | . . . . 1 Fabricator Hacks . | . . . . . Repair Station Hacks . | . . . . . Recycling Unit Hacks . | . . . . . Scanalyzer . | . . . . . Garrison Access Hacks . | . . . . . Unauthorized Hacks . | . . . . . Terminals . | . . . . . Fabricators . | . . . . . Repair Stations . | . . . . . Recycling Units . | . . . . . Scanalyzers . | . . . . . Garrison Access . | . . . . . Data Cores Recovered . | . . . . . Used . | . . . . . Hacking Detections 1 | . . . . 1 Full Trace Events 1 | . . . . 1 Feedback Events . | . . . . . Feedback Blocked . | . . . . . Robot Schematics Acquired . | . . . . . Robots Built . | . . . . . Authchips . | . . . . . Time . | . . . . . Total Robot Build Rating . | . . . . . Part Schematics Acquired . | . . . . . Parts Built . | . . . . . Authchips . | . . . . . Time . | . . . . . Total Part Build Rating . | . . . . . Parts Repaired . | . . . . . Time . | . . . . . Parts Recycled . | . . . . . Recycled Matter . | . . . . . Retrieved Matter . | . . . . . Retrieved Components . | . . . . . Parts Scanalyzed . | . . . . . Part Schematics Acquired . | . . . . . Parts Damaged . | . . . . . Bothacking | -11 -10 -9 -8 -7 ------------ Run | Jun Mat Mat Mat Fac Used RIF Installer . | . . . . . Robots Hacked 2 | . . . . 2 Non-combat 1 | . . . . 1 Combat 1 | . . . . 1 Robot Hacks Applied 2 | . . . . 2 parse_system 1 | . . . . 1 find_chute 1 | . . . . 1 Relay Couplers Released 3 | . . . . 3 Machine Destruction 3 | . . . . 3 Fabnet Peak Effective % . | . . . . . Robots Rewired . | . . . . . Allies Hacked . | . . . . . Hacks Repelled . | . . . . . Allies | -11 -10 -9 -8 -7 -------- Run | Jun Mat Mat Mat Fac Total Allies . | . . . . . Largest Group . | . . . . . Highest-Rated Group . | . . . . . Highest-Rated Ally . | . . . . . Total Orders . | . . . . . Ally Attacks . | . . . . . Total Damage . | . . . . . Kills . | . . . . . Allies Corrupted . | . . . . . Allies Melted . | . . . . . Intel | -11 -10 -9 -8 -7 ------- Run | Jun Mat Mat Mat Fac Robot Analysis Total 1 | . . . . 1 Derelict Logs Recovered . | . . . . . Drone Launches . | . . . . . Drone Recoveries . | . . . . . Exploration | -11 -10 -9 -8 -7 ------------- Run | Jun Mat Mat Mat Fac Turns Passed 273 | 9 25 78 43 118 Spaces Moved 551 | 19 49 147 84 252 Core 449 | 19 49 147 84 150 Treads . | . . . . . Legs . | . . . . . Wheels . | . . . . . Hover . | . . . . . Flight 102 | . . . . 102 Fastest Speed 35 | 50 50 50 50 35 Average Speed 47 | 50 50 50 50 43 Slowest Speed 50 | 50 50 50 50 50 Overloaded Moves . | . . . . . Propulsion Burnouts . | . . . . . Robots Hopped 1 | . . . . 1 Cave-ins Triggered . | . . . . . Exploration Rate (%) 13 | 4 14 26 14 11 Regions Visited 4 Branch Regions . Pre-discovered Areas . | . . . . . Known Exits Taken . | . . . . . Unknown Exits Taken 4 | 1 1 1 1 . Scrap Searched . | . . . . . Spaces Dug . | . . . . . Terrain Destroyed . | . . . . . Melee . | . . . . . Projectile . | . . . . . AOE . | . . . . . Terrain Rammed . | . . . . . Walls Destroyed . | . . . . . Machines Disabled . | . . . . . Actions | -11 -10 -9 -8 -7 --------- Run | Jun Mat Mat Mat Fac Total 557 | 18 48 150 84 257 Wait . | . . . . . Move 546 | 18 48 146 84 250 Hop 1 | . . . . 1 Pick Up 5 | . . 4 . 1 Fast Attach 1 | . . . . 1 Attach 1 | . . . . 1 Detach 1 | . . . . 1 Swap . | . . . . . Drop . | . . . . . Fire 2 | . . . . 2 Melee . | . . . . . Ram . | . . . . . Kick . | . . . . . Crush . | . . . . . Escape Stasis . | . . . . . Rewire . | . . . . . Trap . | . . . . . Miscellaneous . | . . . . . Route ------- -11/Junkyard -10/Materials -9/Materials (discovered 2 exits: [*Mat] / [*Min]) -8/Materials -7/Factory History --------- Turn | Location | Event 3 | -11/Junkyard | Discovered new exit (range 15) 10 | -11/Junkyard | Entered Materials 29 | -10/Materials | Discovered new exit (range 13) 35 | -10/Materials | Entered another Materials area 35 | -9/Materials | Evolved 2 slots: Propulsion x2 90 | -9/Materials | Discovered new exit (range 12) 104 | -9/Materials | Core integrity fell below 50% 106 | -9/Materials | Discovered new exit (range 13) 113 | -9/Materials | Entered another Materials area 113 | -8/Materials | Evolved 2 slots: Propulsion x2 153 | -8/Materials | Discovered new exit (range 5) 156 | -8/Materials | Entered Factory 156 | -7/Factory | Evolved 2 slots: Power x1, Utility x1 253 | -7/Factory | Core integrity fell below 50% 274 | -7/Factory | Self-destructed Last Messages --------------- 00243_ M-28 Smith unfolds itself. 00249_ Jacked L-41 Fighter... >>parse_system Reading system data... 00250_ Jacked K-01 Serf... >>find_chute Pinpointed chute assignment: (65,20). 00252_ U-05 Engineer lays Concrete. 00258_ M-28 Smith repairs R-06 Scavenger. 00258_ U-05 Engineer lays Concrete. 00259_ ALERT: Hostiles spotted, dispatching reinforcements to Terminal F007. 00259_ U-05 Engineer lays Concrete. 00259_ Acquired 63 matter. 00260_ U-05 Engineer lays Concrete. 00270_ C-30 ARC bursts open, deploying its payload. 00270_ S-27 Virus unfolds itself. 00274_ Triggered Shock Trap. 00274_ The floor emits a surge of raw power. 00274_ System corrupted (+1). Map ----- +----------------------------------------------------+ | ?????????????????????????????????????????????????? | | ?????????????????????????????????????????????????? | | ?????????????????????????????????????????????????? | | ?????????????????????????????????????????????????? | | ?????????????????????????????????????????????????? | | ?????????????????????????????????????????????????? | | ?????????????????????????????????????????????????? | | ?????????????????????????????????????????????????? | | ?????????????????????????????????????????????????? | | ?????????????????????????????????????????????????? | | ?????????????????????????????????????????????????? | | ?????????????????????????????????????????????????? | | ?????????????????????????????????????????????????? | | ?????????????????????????????????????????????????? | | ?????????????????????????????????????????????????? | | ?????????????????????????????????????????????????? | | ?????????????????????????????????????????????????? | | ?????????????????????????????????????????????????? | | ?????????????????????????????????????????????????? | | ?????????????????????????????????????????????????? | | ?????????????????????????????????????????????????? | | ?????????????????????????????????????????????????? | | ???????????????????????????????????#####+######### | | ??????????????????# ################ | | ??????????????????# r | | ??????????????????# @ u | | ????????????+ r u | | ????????????# ##### s | | ?????????????????????# ss kk | | ?????????????????????###/########### | | ?????????????????????? ??????????# ####### | | ???????????????????? ! |??????????# #?????? | | ??????????????????? ??????????# #?????? | | ?????????????????? """ ""??????????# #?????? | | ?????????????????# """ ""??????????# #?????? | | ???????????????????""" ""??????????# #?????? | | ????????????????????? ????????????# #?????? | | ????????????????????"" ????????????# #?????? | | ?????????????????????"?????????????# #?????? | | ???????????????????????????????????# #?????? | | ???????????????????????????????????# #?????? | | ???????????????????????????????????# #?????? | | ???????????????????????????????????# # ????? | | ???????????????????????????????????+ +?????? | | ???????????????????????????????????# #?????? | | ???????????????????????????????????# " #?????? | | ???????????????????????????????????# "%" #?????? | | ???????????????????????????????????# " #?????? | | ???????????????????????????????????# #?????? | | ???????????????????????????????????# #?????? | +----------------------------------------------------+ Best States ------------- Heat Dissipation 34 Energy Generation 5 Energy Capacity 100 Matter Stores 300 Matter Capacity 300 Sight Range 16 Terrain Scan Density 10 Evasion (%) 63 Item Schematics ----------------- None Robot Schematics ------------------ None Fabricated ------------ Nothing Alien Tech Used ----------------- None Achievements -------------- None Challenges ------------ None Game ------ Seed LaserScatterSabre Manual? 0 Play Time 00:05:15 Cumulative 154.1 hours Start 2023.04.27 @ 22:14:06 End 2023.04.27 @ 22:17:43 Sessions 1 Manual Loads 0 Difficulty Rogue Special Mode None Game No. 461 Rogue 461 Adventurer 0 Explorer 0 Win Type - Total 7 Types 6/0/0/1/0/0/0/0/0 Lore% 66 Gallery% 71 Achievement% 61 Wizard Run 0 Options --------- ASCII 0 Keyboard 0 Movement Numpad Keybinds 0 Fullscreen 1 Font 16/SmallcapsGlow Map View 75x55 Tactical HUD 1 Map Filters NONE Filters NONE Steam 1 RUN: 6da154a9-f780-4c92-9eb6-7db439ceef81